bitfinex/quotes_SOLUSD_20240703
["timestamp","ask_amount","ask_price","bid_price","bid_amount"]
[1720021211191,15.1391,142.16,142.1,7.037]
[1720021211585,15.1391,142.16,142.11,7.0364]
[1720021211806,15.1391,142.16,142.1,7.0372]
[1720021212318,15.1391,142.16,142.06,0.34]
[1720021212610,15.1391,142.16,142.12,7.0359]
[1720021213996,16.6232,142.2,142.14,7.0351]
[1720021214213,16.6232,142.2,142.1,42.33]
[1720021214522,16.6232,142.2,142.11,0.34]
[1720021215014,16.6232,142.2,142.13,7.0356]
[1720021215213,16.6232,142.2,142.12,7.0362]
[1720021215413,16.6232,142.2,142.13,0.17]
[1720021215819,16.6232,142.2,142.14,7.0352]
[1720021216128,20.0,142.19,142.14,7.0352]
[1720021216504,20.0,142.19,142.13,0.17]
[1720021217307,20.0,142.19,142.1,7.0372]
[1720021217508,20.0,142.19,142.07,42.33]
[1720021217509,20.0,142.19,142.07,48.65113957]
[1720021218144,20.0,142.19,142.1,7.0372]
[1720021218510,20.0,142.19,142.09,7.0376]
[1720021218704,20.0,142.19,142.1,7.0371]
[1720021218930,20.0,142.19,142.06,42.33]
[1720021219239,20.0,142.19,142.12,7.0361]
[1720021219428,20.0,142.19,142.13,7.0357]
[1720021220328,20.0,142.19,142.12,7.0362]
[1720021221116,20.0,142.19,142.13,7.0357]
[1720021221510,20.0,142.19,142.11,0.17]
[1720021221718,20.0,142.19,142.11,7.0365]
[1720021222027,19.6,142.19,142.11,7.0365]
[1720021222637,19.6,142.19,142.12,7.0363]
[1720021224712,19.6,142.19,142.11,7.0367]
[1720021225109,19.6,142.19,142.12,7.0362]
[1720021225845,19.6,142.19,142.08,42.33]
[1720021226020,19.6,142.19,142.14,7.035]
[1720021226342,19.6,142.19,142.09,0.34]
[1720021226652,16.6232,142.2,142.14,7.0351]
[1720021226939,16.6232,142.2,142.12,7.036]
[1720021227337,16.6232,142.2,142.13,7.0355]
[1720021229341,16.6232,142.2,142.14,7.0353]
[1720021229542,16.6232,142.2,142.13,7.0355]
[1720021229737,16.6232,142.2,142.14,7.0352]
[1720021230944,16.6232,142.2,142.16,7.0341]
[1720021231126,16.6232,142.2,142.15,7.0346]
[1720021231333,16.6232,142.2,142.14,7.0351]
[1720021231525,16.6232,142.2,142.15,7.0344]
[1720021232211,16.6232,142.2,142.13,0.17]
[1720021232426,16.6232,142.2,142.17,7.0337]
[1720021232646,16.6232,142.2,142.18,7.0333]
[1720021232822,15.9007,142.25,142.13,75.7]
[1720021233024,20.0,142.24,142.2,7.0322]
[1720021233233,20.0,142.24,142.19,7.0327]
[1720021233848,20.0,142.24,142.14,0.34]
[1720021234022,20.0,142.24,142.15,42.33]
[1720021234224,20.0,142.24,142.16,0.34]
[1720021234531,15.9007,142.25,142.16,0.34]
[1720021234744,15.9007,142.25,142.17,42.33]
[1720021234958,15.9007,142.25,142.18,0.34]
[1720021235256,15.9594,142.29,142.19,42.33]
[1720021235419,15.9594,142.29,142.2,0.34]
[1720021235618,15.9594,142.29,142.2,0.17]
[1720021235847,33.37,142.28,142.16,15.1287]
[1720021236022,33.37,142.28,142.17,0.34]
[1720021236223,33.37,142.28,142.17,0.17]
[1720021236748,20.0,142.27,142.17,0.17]
[1720021236930,20.0,142.27,142.16,0.34]
[1720021237623,20.0,142.27,142.17,42.33]
[1720021237849,20.0,142.28,142.18,0.34]
[1720021238722,20.0,142.28,142.19,42.33]
[1720021238922,15.9594,142.29,142.2,0.17]
[1720021239140,15.9594,142.29,142.2,0.34]
[1720021240149,20.0,142.28,142.2,0.34]
[1720021241726,15.9594,142.29,142.21,6.0229]
[1720021242031,15.9594,142.29,142.22,0.17]
[1720021243530,15.9594,142.29,142.2,42.33]
[1720021244941,15.9594,142.29,142.21,0.17]
[1720021245130,15.9594,142.29,142.21,0.34]
[1720021245328,15.9594,142.29,142.21,0.17]
[1720021245537,15.9594,142.29,142.19,15.5828]
[1720021245742,20.0,142.28,142.19,15.5828]
[1720021246331,20.0,142.28,142.18,48.82071914]
[1720021246726,41.17,142.28,142.18,6.49071914]
[1720021247032,53.37,142.28,142.15,64.0518]
[1720021248238,53.37,142.28,142.17,42.33]
[1720021248445,53.37,142.28,142.19,42.33]
[1720021248446,20.0,142.28,142.19,42.33]
[1720021248648,20.0,142.28,142.2,0.34]
[1720021249663,20.0,142.28,142.2,0.17]
[1720021252879,20.0,142.28,142.17,42.33]
[1720021253076,20.0,142.28,142.18,0.34]
[1720021253642,20.0,142.28,142.19,42.33]
[1720021253847,20.0,142.28,142.2,0.34]
[1720021254782,20.0,142.28,142.2,49.07054786]
[1720021254959,20.0,142.28,142.2,42.67]
[1720021256157,15.9594,142.29,142.2,42.67]
[1720021257276,15.9594,142.29,142.2,0.34]
[1720021257765,16.65,142.27,142.23,7.057]
[1720021258289,15.9594,142.29,142.18,6.22653019]
[1720021258290,16.65,142.25,142.18,6.22653019]
[1720021258586,16.65,142.25,142.13,21.17]
[1720021258587,16.65,142.24,142.2,16.65]
[1720021258880,16.65,142.25,142.21,7.057]
[1720021259755,15.9594,142.29,142.17,42.33]
[1720021259971,20.0,142.28,142.18,0.34]
[1720021262188,20.0,142.28,142.16,33.3]
[1720021262189,16.4045,142.27,142.16,33.3]
[1720021262354,33.3,142.25,142.11,21.9675]
[1720021262555,33.3,142.25,142.11,28.16336275]
[1720021262556,16.4045,142.24,142.11,28.16336275]
[1720021262853,20.0,142.23,142.11,28.16336275]
[1720021263058,53.3,142.23,142.11,28.16336275]
[1720021263254,53.3,142.23,142.11,70.49336275]
[1720021263465,15.7594,142.22,142.09,287.075112]
[1720021263659,20.0,142.21,142.09,258.9]
[1720021264383,20.0,142.21,142.1,42.33]
[1720021264754,20.0,142.21,142.11,0.34]
[1720021266976,20.0,142.21,142.1,0.34]
[1720021267294,53.3,142.21,142.1,0.34]
[1720021268566,0.17,142.2,142.1,0.34]
[1720021278297,49.1316,142.19,142.07,42.33]
[1720021278487,0.17,142.18,142.04,293.41574159]
[1720021278800,49.1316,142.17,142.04,320.385472]
[1720021279094,33.3,142.17,142.04,258.9]
[1720021279265,16.3698,142.14,142.04,258.9]
[1720021279767,16.3698,142.14,142.04,301.23]
[1720021281398,16.3698,142.14,142.05,0.34]
[1720021281874,16.69,142.1,142.03,6.41394866]
[1720021282083,16.69,142.1,142.05,16.69]
[1720021282687,16.3698,142.14,142.02,70.727]
[1720021282688,16.3698,142.14,142.03,16.69]
[1720021282999,16.69,142.1,142.05,16.69]
[1720021284397,16.69,142.1,142.04,0.17]
[1720021284598,16.69,142.09,142.04,16.86]
[1720021284902,33.2636,142.08,142.04,16.86]
[1720021285882,33.2636,142.08,142.04,0.17]
[1720021286084,33.2636,142.08,142.04,16.69]
[1720021286293,33.2636,142.08,142.03,0.34]
[1720021286486,33.2636,142.08,142.03,17.03]
[1720021287303,33.2636,142.08,142.03,16.86]
[1720021288275,16.69,142.07,142.01,16.86]
[1720021288479,16.69,142.07,142.02,16.69]
[1720021288693,16.69,142.06,142.01,16.69]
[1720021289290,16.5736,142.08,142.01,23.747]
[1720021289491,16.69,142.06,142.01,23.747]
[1720021289696,16.69,142.06,141.99,48.82288304]
[1720021290212,16.69,142.06,142.01,16.69]
[1720021291279,16.5736,142.08,142.0,0.17]
[1720021291484,16.69,142.04,141.97,42.35]
[1720021291714,16.69,142.04,141.99,16.69]
[1720021292002,16.69,142.02,141.96,6.3704]
[1720021292308,16.5736,142.08,141.98,16.69]
[1720021292309,16.69,142.03,141.98,16.69]
[1720021292678,16.69,142.03,141.96,48.7204]
[1720021292878,16.69,142.04,141.99,16.69]
[1720021293094,16.69,142.03,141.99,16.69]
[1720021293285,16.69,142.03,141.98,16.69]
[1720021294279,16.69,142.02,141.96,42.35]
[1720021294482,33.1619,142.02,141.96,42.35]
[1720021294691,16.69,142.01,141.93,42.35]
[1720021294888,16.69,142.01,141.96,16.69]
[1720021295302,16.4719,142.02,141.96,16.69]
[1720021295509,33.1619,142.02,141.97,16.69]
[1720021295705,16.69,142.01,141.96,16.69]
[1720021296287,16.4719,142.02,141.96,16.69]
[1720021296613,16.69,142.01,141.96,16.69]
[1720021296785,16.69,142.01,141.93,48.70216739]
[1720021296987,16.69,142.01,141.96,16.69]
[1720021297290,16.69,142.0,141.95,16.69]
[1720021297490,16.69,142.0,141.95,23.747]
[1720021298081,16.69,142.0,141.93,48.70216739]
[1720021298282,16.69,142.0,141.94,0.17]
[1720021298697,16.4719,142.02,141.96,16.69]
[1720021298890,16.69,142.0,141.96,16.69]
[1720021299405,16.69,142.01,141.96,16.69]
[1720021300505,16.69,142.0,141.95,16.69]
[1720021300809,33.1619,142.02,141.98,16.69]
[1720021301012,33.1619,142.02,141.94,0.34]
[1720021301307,33.1619,142.02,141.97,16.69]
[1720021302886,16.69,142.01,141.97,16.69]
[1720021304311,16.69,142.01,141.96,16.69]
[1720021305593,16.4719,142.02,141.94,42.52]
[1720021305790,16.69,142.04,141.99,16.69]
[1720021305999,16.4517,142.06,142.02,16.69]
[1720021306199,16.4517,142.06,142.0,0.17]
[1720021306200,16.4517,142.06,142.03,16.69]
[1720021307942,16.4517,142.06,142.02,16.69]
[1720021308300,16.4517,142.06,142.0,0.17]
[1720021308616,33.1417,142.06,142.01,16.69]
[1720021308818,16.69,142.04,142.0,16.69]
[1720021310303,16.69,142.04,141.99,16.69]
[1720021310992,16.69,142.03,141.95,15.4999]
[1720021311191,16.69,142.03,141.98,16.69]
[1720021311395,16.69,142.02,141.97,16.69]
[1720021311614,16.69,142.01,141.97,16.69]
[1720021312401,16.69,142.01,141.94,48.4093]
[1720021312605,16.69,142.0,141.96,16.69]
[1720021312800,16.69,142.01,141.96,16.69]
[1720021313005,20.0,142.05,141.98,16.69]
[1720021313219,16.69,142.03,141.99,16.69]
[1720021313400,16.69,142.04,141.99,16.69]
[1720021313819,20.0,142.05,141.95,75.76]
[1720021314115,20.0,142.05,141.96,0.34]
[1720021316705,16.4517,142.06,141.96,0.34]
[1720021316921,16.4517,142.06,141.97,75.76]
[1720021317201,16.4517,142.06,141.98,0.34]
[1720021318428,15.8715,142.1,141.99,75.76]
[1720021318603,20.0,142.09,142.0,0.34]
[1720021320035,15.8715,142.1,142.01,75.76]
[1720021320332,15.8715,142.1,142.02,0.34]
[1720021321308,15.8715,142.1,142.01,0.34]
[1720021323521,15.8715,142.1,142.03,42.35]
[1720021323725,5.77863126,142.15,142.04,0.34]
[1720021323726,15.4797,142.14,142.04,0.34]
[1720021323929,20.0,142.13,142.04,0.34]
[1720021324117,15.4797,142.14,142.04,0.34]
[1720021328144,15.4797,142.14,142.05,42.35]
[1720021328442,15.4797,142.14,142.06,0.34]
[1720021329451,15.4797,142.14,142.03,57.5986]
[1720021329742,15.4797,142.14,142.04,0.34]
[1720021329926,15.4797,142.14,142.04,0.17]
[1720021330337,20.17,142.13,142.03,15.2486]
[1720021331942,41.36,142.13,142.02,48.3692]
[1720021332131,74.77,142.13,142.02,48.3692]
[1720021333334,74.77,142.13,142.0,16.6549]
[1720021333541,70.8243,142.11,142.0,16.6549]
[1720021333722,41.53,142.1,142.0,16.6549]
[1720021334229,54.6,142.09,141.97,42.35]
[1720021334428,20.34,142.08,141.97,42.35]
[1720021334654,20.34,142.08,141.96,21.4961]
[1720021334655,15.812,142.06,141.96,21.4961]
[1720021334818,20.17,142.05,141.96,21.4961]
[1720021335214,20.0,142.05,141.96,21.4961]
[1720021336223,20.0,142.05,141.97,0.17]
[1720021338625,16.477,142.12,141.98,42.35]
[1720021338838,16.477,142.12,141.99,76.1]
[1720021339346,37.667,142.12,141.99,76.1]
[1720021340528,16.477,142.12,141.99,83.157]
[1720021340740,16.477,142.12,142.01,75.76]
[1720021340941,16.477,142.12,142.03,91.121]
[1720021341145,16.3659,142.17,142.04,0.34]
[1720021341341,16.3659,142.17,142.05,75.76]
[1720021341523,16.3659,142.17,142.06,0.34]
[1720021341732,16.3659,142.17,142.07,1.21389614]
[1720021341930,16.3659,142.17,142.08,1.21431438]
[1720021343351,16.3659,142.17,142.06,0.34]
[1720021345647,20.0,142.16,142.06,0.34]
[1720021345851,20.17,142.16,142.06,0.34]
[1720021347149,20.17,142.16,142.04,42.35]
[1720021347150,53.58,142.16,142.05,0.34]
[1720021347357,53.41,142.16,142.05,0.34]
[1720021347659,20.0,142.16,142.06,42.35]
[1720021347840,20.0,142.16,142.07,0.34]
[1720021348856,16.3659,142.17,142.07,0.34]
[1720021349039,16.3659,142.17,142.07,42.69]
[1720021349251,16.3659,142.17,142.07,76.1]
[1720021350133,322.63029117,142.32,142.09,75.76]
[1720021350134,15.8112,142.2,142.09,75.76]
[1720021350342,15.8112,142.24,142.11,75.76]
[1720021350537,15.8112,142.24,142.13,75.76]
[1720021350737,15.8112,142.24,142.14,0.17]
[1720021351450,15.8112,142.24,142.14,0.34]
[1720021351959,15.8112,142.24,142.16,42.35]
[1720021352256,15.8112,142.24,142.17,0.34]
[1720021352752,15.8112,142.24,142.17,0.17]
[1720021352930,15.8112,142.24,142.14,42.35]
[1720021353135,15.8112,142.24,142.15,0.34]
[1720021355966,15.8112,142.24,142.15,42.69]
[1720021357363,15.8112,142.24,142.17,42.35]
[1720021357542,15.8112,142.24,142.18,0.34]
[1720021360164,33.41,142.38,142.18,0.34]
[1720021360165,15.9322,142.28,142.19,48.7421]
[1720021360349,15.9322,142.28,142.2,0.34]
[1720021360555,15.9322,142.28,142.21,42.35]
[1720021360758,15.9322,142.28,142.22,0.34]
[1720021360969,15.9322,142.35,142.22,0.34]
[1720021361264,49.3422,142.35,142.22,33.75]
[1720021361444,49.3422,142.35,142.23,42.35]
[1720021361650,49.3422,142.35,142.24,0.34]
[1720021361849,20.0,142.34,142.24,0.34]
[1720021362752,41.19,142.34,142.22,33.41]
[1720021362962,0.34,142.33,142.2,82.817]
[1720021363150,0.34,142.33,142.21,0.34]
[1720021363359,54.94,142.33,142.21,0.34]
[1720021363663,20.0,142.32,142.21,0.34]
[1720021363968,16.0073,142.31,142.21,0.34]
[1720021364156,20.0,142.3,142.21,0.34]
[1720021364355,20.0,142.3,142.19,6.3921]
[1720021364356,20.17,142.3,142.19,6.3921]
[1720021364562,20.0,142.3,142.19,48.7421]
[1720021365559,20.0,142.3,142.2,0.34]
[1720021369748,20.0,142.3,142.2,33.75]
[1720021370066,20.0,142.3,142.21,42.35]
[1720021370257,20.0,142.3,142.22,0.34]
[1720021371153,16.0073,142.31,142.24,33.41]
[1720021371358,15.8868,142.35,142.27,42.35]
[1720021371680,15.8868,142.35,142.28,0.34]
[1720021372046,15.8868,142.35,142.28,0.17]
[1720021372261,15.8868,142.35,142.28,0.34]
[1720021372847,15.8868,142.35,142.28,0.17]
[1720021373650,15.8868,142.35,142.25,42.35]
[1720021373847,15.8868,142.35,142.24,0.17]
[1720021373848,49.2968,142.35,142.24,0.17]
[1720021374280,0.17,142.34,142.24,0.17]
[1720021374783,20.17,142.34,142.24,0.17]
[1720021376454,20.17,142.34,142.24,0.34]
[1720021378870,20.0,142.34,142.24,0.34]
[1720021379174,20.0,142.34,142.24,33.75]
[1720021379377,20.0,142.34,142.25,42.35]
[1720021379673,20.0,142.34,142.26,48.9662]
[1720021379877,20.0,142.34,142.27,0.17]
[1720021380377,20.0,142.34,142.26,6.2762]
[1720021382075,20.0,142.34,142.25,0.17]
[1720021382280,20.0,142.34,142.24,0.34]
[1720021383465,74.6,142.34,142.22,6.3415]
[1720021383774,0.17,142.33,142.22,6.3415]
[1720021383978,0.34,142.33,142.22,6.3415]
[1720021384179,0.34,142.33,142.23,1.40530578]
[1720021384365,0.34,142.33,142.22,48.6915]
[1720021384684,0.17,142.33,142.22,48.6915]
[1720021384987,20.0,142.34,142.22,48.6915]
[1720021385173,20.0,142.34,142.23,75.76]
[1720021385376,20.0,142.34,142.24,0.17]
[1720021385579,20.0,142.34,142.25,75.76]
[1720021385754,20.0,142.34,142.24,0.17]
[1720021386479,20.0,142.34,142.22,6.3415]
[1720021386480,41.19,142.34,142.22,6.3415]
[1720021386860,0.34,142.33,142.22,6.3415]
[1720021387996,0.17,142.33,142.23,0.17]
[1720021388279,0.34,142.33,142.23,0.17]
[1720021388469,33.75,142.33,142.2,98.1691]
[1720021388664,20.0,142.32,142.21,0.17]
[1720021388869,0.17,142.31,142.21,0.17]
[1720021389179,15.5485,142.3,142.21,0.17]
[1720021389975,15.5485,142.3,142.21,0.34]
[1720021393284,15.5485,142.3,142.21,0.17]
[1720021394888,15.5485,142.3,142.21,0.34]
[1720021399800,15.5485,142.3,142.21,0.91782636]
[1720021400107,15.5485,142.3,142.21,0.34]
[1720021402080,15.5485,142.3,142.23,42.35]
[1720021402290,15.5485,142.3,142.24,0.34]
[1720021403492,15.5485,142.3,142.21,44.63839079]
[1720021403696,15.5485,142.3,142.22,0.17]
[1720021403884,15.5485,142.3,142.22,0.34]
[1720021404797,15.5485,142.3,142.21,44.63839079]
[1720021405988,15.5485,142.3,142.21,42.35]
[1720021406279,15.5485,142.3,142.22,0.17]
[1720021406580,15.5485,142.3,142.22,0.34]
[1720021409206,15.5485,142.3,142.2,33.41]
[1720021409403,15.5485,142.3,142.19,55.76730969]
[1720021409593,15.5485,142.3,142.19,48.71030969]
[1720021409793,0.17,142.29,142.19,48.71030969]
[1720021410195,20.0,142.29,142.19,48.71030969]
[1720021410386,20.0,142.29,142.19,42.35]
[1720021411286,20.0,142.29,142.2,0.17]
[1720021413502,20.0,142.29,142.18,39.70173084]
[1720021413707,15.8827,142.27,142.18,0.17]
[1720021413890,15.8827,142.27,142.17,42.35]
[1720021414088,15.8827,142.27,142.16,39.58729259]
[1720021414089,20.0,142.26,142.16,39.58729259]
[1720021414704,20.0,142.26,142.16,81.93729259]
[1720021415203,16.5612,142.3,142.21,70.0153]
[1720021415426,16.1002,142.37,142.25,42.35]
[1720021415589,16.1002,142.37,142.27,75.76]
[1720021415916,16.9613093,142.41,142.35,42.35]
[1720021416097,0.8611093,142.41,142.36,0.34]
[1720021416283,0.8611093,142.41,142.37,42.35]
[1720021416484,16.1002,142.5,142.4,42.35]
[1720021416702,16.1002,142.5,142.38,23.81565848]
[1720021416703,6.63017296,142.55,142.42,63.54]
[1720021416883,6.63017296,142.55,142.41,133.75]
[1720021416884,0.8515417,142.55,142.47,42.35]
[1720021417092,0.8515417,142.55,142.48,0.34]
[1720021417397,0.8515417,142.55,142.49,42.35]
[1720021417711,0.8515417,142.55,142.5,0.34]
[1720021418083,0.8515417,142.55,142.47,42.35]
[1720021418284,0.8515417,142.55,142.48,0.17]
[1720021419385,0.8515417,142.55,142.48,0.34]
[1720021419585,0.8515417,142.55,142.49,42.35]
[1720021419803,0.8515417,142.55,142.5,0.34]
[1720021420610,0.8515417,142.55,142.45,42.35]
[1720021421107,0.8515417,142.55,142.39,16.1002]
[1720021421108,0.8515417,142.55,142.39,22.0967267]
[1720021421411,0.8515417,142.55,142.4,2.28533746]
[1720021421713,0.8515417,142.55,142.4,44.63533746]
[1720021422321,0.8515417,142.55,142.42,42.35]
[1720021422508,0.8515417,142.55,142.43,2.2848561]
[1720021422886,0.8515417,142.55,142.44,42.35]
[1720021423189,0.8515417,142.55,142.46,42.35]
[1720021423391,0.8515417,142.55,142.47,0.34]
[1720021424402,0.8515417,142.55,142.46,0.34]
[1720021425216,0.8515417,142.55,142.46,0.17]
[1720021425413,0.8515417,142.55,142.45,44.6345353]
[1720021426895,0.8515417,142.55,142.4,42.35]
[1720021427103,0.8515417,142.55,142.42,70.463687]
[1720021427623,15.3758,142.54,142.42,70.463687]
[1720021427796,20.0,142.53,142.42,70.463687]
[1720021428326,0.17,142.52,142.41,2.28517698]
[1720021428496,20.0,142.53,142.42,42.35]
[1720021429200,0.17,142.52,142.41,57.7258]
[1720021429706,20.0,142.53,142.41,57.7258]
[1720021431220,20.0,142.53,142.42,0.34]
[1720021435226,41.19,142.53,142.41,15.3758]
[1720021435408,0.34,142.52,142.39,16.1002]
[1720021436911,0.34,142.52,142.4,0.17]
[1720021437336,0.34,142.52,142.4,0.34]
[1720021437905,20.0,142.53,142.4,0.34]
[1720021439935,36.9058,142.54,142.4,0.34]
[1720021440141,0.34,142.53,142.4,0.34]
[1720021441344,41.53,142.51,142.39,58.4502]
[1720021441531,21.36,142.51,142.39,58.4502]
[1720021441843,41.36,142.5,142.39,16.1002]
[1720021442045,0.17,142.49,142.39,16.1002]
[1720021442746,15.1165,142.48,142.39,16.1002]
[1720021442933,20.0,142.47,142.39,16.1002]
[1720021444113,20.0,142.47,142.39,58.4502]
[1720021444318,20.0,142.47,142.4,0.34]
[1720021444842,20.0,142.47,142.4,0.17]
[1720021445262,20.0,142.47,142.39,16.1002]
[1720021446316,20.0,142.47,142.4,0.17]
[1720021446928,20.0,142.47,142.39,16.1002]
[1720021448049,20.0,142.47,142.38,0.34]
[1720021448244,20.0,142.47,142.37,0.34]
[1720021448744,20.0,142.47,142.37,0.17]
[1720021448935,20.0,142.47,142.35,28.126675]
[1720021449137,0.17,142.46,142.35,70.476675]
[1720021449753,20.0,142.47,142.35,70.476675]
[1720021450338,20.0,142.47,142.36,0.34]
[1720021453223,20.0,142.47,142.36,2.62597959]
[1720021461749,20.0,142.47,142.38,75.55]
[1720021461959,20.0,142.47,142.39,0.34]
[1720021463940,15.1165,142.48,142.39,0.34]
[1720021464197,15.1165,142.48,142.41,42.35]
[1720021464449,8.14038342,142.55,142.39,28.571]
[1720021464450,16.1219,142.54,142.43,42.35]
[1720021464647,16.1219,142.54,142.44,0.72143843]
[1720021464841,16.1219,142.54,142.45,0.59285038]
[1720021465190,16.1219,142.54,142.46,0.59280876]
[1720021465756,20.0,142.53,142.46,0.59280876]
[1720021465942,20.0,142.53,142.44,75.89]
[1720021466133,16.1219,142.54,142.44,75.89]
[1720021466356,16.1219,142.54,142.44,42.69]
[1720021467437,20.0,142.53,142.44,0.34]
[1720021469755,20.0,142.53,142.44,75.89]
[1720021469963,16.1219,142.54,142.44,82.931]
[1720021470255,16.1219,142.54,142.45,1.017076]
[1720021470447,16.1219,142.54,142.46,0.34]
[1720021471067,16.1219,142.54,142.45,0.34]
[1720021471478,16.1219,142.54,142.46,75.55]
[1720021471685,16.1219,142.54,142.47,0.34]
[1720021473570,16.1219,142.54,142.47,0.17]
[1720021473871,16.1219,142.54,142.45,42.35]
[1720021475256,16.1219,142.54,142.46,0.34]
[1720021481870,16.1219,142.54,142.44,27.19390477]
[1720021482086,16.1219,142.54,142.39,39.3586]
[1720021482087,41.36,142.53,142.39,39.3586]
[1720021482254,41.36,142.53,142.39,6.1586]
[1720021482255,54.56,142.52,142.39,6.1586]
[1720021482474,20.17,142.51,142.39,6.1586]
[1720021483152,20.17,142.51,142.39,48.5086]
[1720021483983,20.17,142.51,142.39,54.59060926]
[1720021485007,41.36,142.51,142.4,0.34]
[1720021486793,15.2901,142.5,142.4,0.34]
[1720021486972,20.0,142.49,142.4,0.34]
[1720021487995,20.0,142.49,142.4,0.17]
[1720021490313,0.34,142.48,142.37,33.2]
[1720021490598,33.54,142.48,142.36,85.50360144]
[1720021490970,20.0,142.47,142.36,57.37764444]
[1720021491277,20.0,142.47,142.37,0.17]
[1720021491485,20.0,142.47,142.37,0.34]
[1720021492876,36.6056,142.46,142.35,28.128532]
[1720021493079,20.34,142.45,142.33,301.25]
[1720021493377,41.53,142.45,142.34,28.130645]
[1720021493778,20.34,142.45,142.33,307.35099482]
[1720021494272,41.53,142.45,142.33,307.35099482]
[1720021494816,41.53,142.45,142.34,0.34]
[1720021497895,41.53,142.45,142.32,61.333599]
[1720021497896,21.19,142.43,142.32,61.333599]
[1720021498078,20.17,142.42,142.31,42.52]
[1720021498286,53.37,142.42,142.32,0.17]
[1720021498915,16.3544,142.41,142.29,70.489473]
[1720021499084,20.17,142.4,142.29,70.489473]
[1720021499280,20.17,142.4,142.29,42.35]
[1720021500382,41.36,142.4,142.28,28.14158]
[1720021500582,37.628,142.39,142.27,42.35]
[1720021500791,20.34,142.38,142.26,42.35]
[1720021500999,74.73,142.38,142.26,42.35]
[1720021501200,16.438,142.37,142.26,42.35]
[1720021501412,20.0,142.36,142.26,28.145758]
[1720021501712,20.0,142.36,142.25,48.45802383]
[1720021502081,20.0,142.36,142.25,76.60709883]
[1720021502613,20.0,142.36,142.25,48.45802383]
[1720021502791,0.17,142.35,142.25,48.45802383]
[1720021502993,0.34,142.35,142.24,28.149698]
[1720021503506,0.34,142.35,142.24,34.27496119]
[1720021503807,0.34,142.35,142.25,1.40552316]
[1720021504610,0.17,142.35,142.26,0.17]
[1720021505115,0.34,142.35,142.24,76.79496119]
[1720021505309,33.2,142.34,142.22,42.35]
[1720021505510,35.1788,142.33,142.21,42.35]
[1720021506303,21.19,142.32,142.21,42.35]
[1720021506483,21.19,142.32,142.2,28.157102]
[1720021506484,20.17,142.31,142.2,28.157102]